Workbook

Sheet Données de base
B1: CONFIDENTIAL
B2: Données de base | J2: Remarques concernant le traitement pour les bénéficiaires de subventions: Veuillez d’abord renseigner les données de base suivantes avant de remplir l’onglet « Budget Financements ». Ne remplissez que les cellules sur fond bleu. Toutes les autres cellules sont calculées automatiquement.
B4: Nom du bénéficiaire : | H4: =IF(C4="Bitte eintragen","- Bitte den Namen Ihres Vereins im Feld <Name des Zuschussempfängers> eintragen; "," ") -> 
B6: S’agit-il du premier budget ou d’une modification du contrat ? | C6: Sélectionner | F6: =IF(C6="Adaptation du contrat","Numéro d’ordre :","") ->  | G6: À sélectionner uniquement en cas d’avenant au contrat | H6: =IF(C6="Vertragsanpassung",1,0) -> 0
B7: Titre du projet | H7: =IF(C7="Veranstaltung",1,IF(C7="Projekt",1,0)) -> 0
B8: Numéro de contrat
B9: Demandez-vous la prise en charge de vos frais généraux d'administration ? | C9: Sélectionner | D9: Veuillez indiquer le montant des frais généraux administratifs en pourcentage. | H9: =IF(C9="Ja, anderer Betrag",1,0) -> 0
B10: Apporterez-vous une contribution (financière) propre à cette mesure ? | C10: Sélectionner | D10: Montant en EUR | H10: =IF(C10="Ja, anderer Betrag",1,0) -> 0
B11: Par combien de contributeurs le projet doit-il être cofinancé (en plus de la GIZ) ? | C11: Sélectionner | D11: Nom du bailleur de fonds externe | F11: Montant des fonds de tiers en EUR
D12: Nom du bailleur de fonds externe | F12: Montant des fonds de tiers en EUR | H12: =IF(C12="Ja",1,0) -> 0
D13: Nom du bailleur de fonds externe | F13: Montant des fonds de tiers en EUR | H13: =IF(C13="Ja",1,0) -> 0
D14: Nom du bailleur de fonds externe | F14: Montant des fonds de tiers en EUR
D15: Nom du bailleur de fonds externe | F15: Montant des fonds de tiers en EUR
D16: Nom du bailleur de fonds externe | F16: Montant des fonds de tiers en EUR
D17: Nom du bailleur de fonds externe | F17: Montant des fonds de tiers en EUR
B18: Des fonds doivent-ils être transférés aux destinataires tiers ? (Veuillez noter qu'il ne s'agit pas ici de paiements pour des prestations achetées) | C18: Sélectionner | D18: Il s'agit de vos partenaires qui mettent en œuvre de manière autonome une partie de votre projet avec vous et qui reçoivent en contrepartie le remboursement des frais encourus, dans la mesure où ils sont requis pour la mise en œuvre. Un budget séparé doit être soumis et un examen d'aptitude commerciale et juridique (uniquement les critères : personnalité juridique et utilité publique) doit être effectué par le projet GIZ.
B19: Se procure-t-on des médicaments et/ou des pesticides et/ou des engrais minéraux? | C19: Sélectionner | D19: Un processus d’autorisation distinct, interne à la GIZ, est nécessaire.
B20: La part d’achat achats de biens matériels est-elle supérieure à 1 000 000 EUR ou supérieure à 50 % avec une valeur contractuelle du financement d’au moins 400 000 EUR ? | C20: Sélectionner | D20: Un processus d’autorisation distinct, interne à la GIZ, est nécessaire.
B21: Des mesures de construction seront-elles financées ? | C21: Sélectionner | D21: Un processus d’autorisation distinct, interne à la GIZ, pourra être nécessaire. Veuillez noter que les mesures de construction dans le cadre d’une convention de subvention locale ne sont approuvées par la GIZ qu’uniquement dans de rares cas exceptionnels.
B22: Des bulles d’aide doivent-elles s’afficher dans le budget ? « Oui » recommandé pour le traitement « Non » recommandé pour une meilleure lisibilité | C22: Oui
B24: Date d'élaboration du budget :

Sheet Budget Financements
B1: CONFIDENTIAL
A2: =IF('Données de base'!C4="","Veuillez renseigner toutes les données de base.",CONCATENATE("Budget /Plan de financement - Annexe 1",CHAR(10),'Données de base'!C4," - ",'Données de base'!C7,"",'Données de base'!E7,"",IF(L6="VE",CONCATENATE(" - ",'Données de base'!G6," Avenant",""),""))) -> Veuillez renseigner toutes les données de base. | J2: ='Données de base'!C24 -> 00:00:00 | N2: Pas de modification | O2: Remarques concernant le traitement : Veuillez d’abord renseigner les données de base avant de remplir l’onglet « Budget ». Dans l’onglet « Budget », ne remplissez que les cellules sur fond bleu. Toutes les autres cellules sont calculées automatiquement.
A3: =IF(NOT(ISBLANK('Données de base'!C8)),CONCATENATE("Numéro de contrat: ",'Données de base'!C8),"") -> 
J4: 2025-02 | N4: modification
B5: Description | C5: Code | D5: Quantité / Nombre | E5: Unité (personne) | F5: Quantité / Nombre | G5: Unité (p. ex. mois, contrat, vol…) | H5: Montant unitaire éligible en EUR (max.) (prix par unité) | I5: Total Contribution financière de la GIZ en EUR (max.) | J5: Contribution propre / Financement de tiers en EUR (max.) | L5: =IF($L$6="VE",CONCATENATE("En cas d'avenants:",CHAR(10),"cette ligne budgétaire a-t-elle été modifiée ?"),"") ->  | O5: Remarques générales : Ce format de budget sert de base de décompte. Pour votre usage interne, n’hésitez pas à créer d’autres fichiers contenant des informations plus détaillées. Tous les postes inscrits au budget doivent également figurer dans la description du projet afin que le lien avec le projet soit visible. Le tableau est pourvu de formules qui doivent être conservées. Veuillez vous tenir au format à deux décimales. Il est recommandé d’arrondir les unités dans la mesure du possible. Les coûts sont convenus avec une valeur « max. ».
B6: =IF('Données de base'!C22="Oui",CONCATENATE("Remarques: Les cellules sur fond bleu sont remplies par ",IF('Données de base'!C4="","le bénéficiaire",'Données de base'!C4),),"") -> Remarques: Les cellules sur fond bleu sont remplies par le bénéficiaire | I6: =IF('Données de base'!C22="Oui","Remarques: Les cellules sont calculées automatiquement.","") -> Remarques: Les cellules sont calculées automatiquement. | L6: =IF('Données de base'!C6="Adaptation du contrat","VE","NOVE") -> NOVE
A7: 1 | B7: Ressources humaines (Remarque : Seuls les frais de personnel individuels (salaire brut mensuel de l’employeur*euse) peuvent être décomptés. Les suppléments tels que les frais généraux du personnel, qui sont calculés au prorata du personnel, ne sont pas éligibles. Veuillez insérer uniquement les noms de fonction, pas les noms de personnes individuelles. a) Frais pour les collaborateurs*rices employé*e*s par le bénéficiaire (salarié*e*s de votre organisation uniquement) : La preuve dois être fournie sous forme de fiches de salaire ou, en cas de financement proportionnel, sous forme de fiches de salaire accompagnées des relevés d'heures correspondants (voir lien en 1b). b) Frais pour les consultant·e·s intégré·e·s qui sont des personnes indépendantes ou employées par un tiers qui sont détachées auprès du destinataire, qui n’interviennent donc pas sur la base d’un contrat de travail avec le destinataire, mais qui travaillent néanmoins en suivant les instructions/sous la supervision du destinataire, à condition que cela soit autorisé par le droit applicable au contrat du·de la consultant·e intégré·e. Pour les formes de preuve, voir : Exigences concernant le budget et la gestion financière (annexe 3a).) | D7: =IF('Données de base'!C22="Oui",CONCATENATE("Aide pour remplir: ",Exemple!O6),"") -> Aide pour remplir: La colonne « Montant unitaire éligible (max.) » doit toujours indiquer le salaire brut (mensuel) de l’employeur*euse. Pour les emplois à temps partiel, veuillez indiquer le pourcentage à la colonne D. Les frais de personnel supplémentaires qui s’appliquent en vertu de la législation dans votre pays peuvent être pris en compte. En principe, les cotisations sociales et les paiements convenus dans le contrat de travail ou la convention collective peuvent être financés (les gratifications ou les primes d’intéressement au bénéfice sont en revanche exclues). Les coûts accessoires d’une autre nature doivent être discutés et vérifiés avant l’établissement du contrat et faire l’objet d’un commentaire dans la ligne budgétaire. Les contrats portant sur des petits boulots (« mini-jobs ») ou des jobs d’étudiant sont à affecter au poste Coûts de personnel, même s’il n’y a pas de cotisations sociales à payer. Si plusieurs personnes doivent être financées au prorata (p. ex. 3 personnes à raison de 75 %), veuillez augmenter le nombre de mois en conséquence et inscrire le nombre de personnes dans la description de la ligne budgétaire. | J7: Le financement proportionnel des lignes budgétaires doit être évité et ne s’applique qu’aux frais de personnel et aux coûts de partage équitable (Fair shared costs ) Les autres coûts qui surviennent dans le cadre de la mise en œuvre du projet et qui ne doivent pas être pris en charge par la GIZ doivent être calculés séparément, soit en tant que contribution propre, soit en tant que contribution d'un tiers. | L7: =IF(L6="VE","À NOTER . La GIZ ne peut pas prendre en charge les coûts dus à l'inflation.","") -> 
E8: personne | G8: mois | I8: =ROUND(D8*F8*H8,2) -> 0.00 € | L8: Pas de modification
E9: personne | G9: mois | I9: =ROUND(D9*F9*H9,2) -> 0.00 € | L9: Pas de modification
E10: personne | G10: mois | I10: =ROUND(D10*F10*H10,2) -> 0.00 € | L10: Pas de modification
E11: personne | G11: mois | I11: =ROUND(D11*F11*H11,2) -> 0.00 € | L11: Pas de modification
E12: personne | G12: mois | I12: =ROUND(D12*F12*H12,2) -> 0.00 € | L12: Pas de modification
E13: personne | G13: mois | I13: 0.00 € | L13: Pas de modification
E14: personne | G14: mois | I14: 0.00 € | L14: Pas de modification
E15: personne | G15: mois | I15: 0.00 € | L15: Pas de modification
E16: personne | G16: mois | I16: 0.00 € | L16: Pas de modification
E17: personne | G17: mois | I17: 0.00 € | L17: Pas de modification
E18: personne | G18: mois | I18: 0.00 € | L18: Pas de modification
E19: personne | G19: mois | I19: 0.00 € | L19: Pas de modification
E20: personne | G20: mois | I20: 0.00 € | L20: Pas de modification
E21: personne | G21: mois | I21: 0.00 € | L21: Pas de modification
E22: personne | G22: mois | I22: 0.00 € | L22: Pas de modification
E23: personne | G23: mois | I23: 0.00 € | L23: Pas de modification
E24: personne | G24: mois | I24: 0.00 € | L24: Pas de modification
E25: personne | G25: mois | I25: 0.00 € | L25: Pas de modification
E26: personne | G26: mois | I26: 0.00 € | L26: Pas de modification
E27: personne | G27: mois | I27: 0.00 € | L27: Pas de modification
E28: personne | G28: mois | I28: 0.00 € | L28: Pas de modification
E29: personne | G29: mois | I29: 0.00 € | L29: Pas de modification
E30: personne | G30: mois | I30: 0.00 € | L30: Pas de modification
E31: personne | G31: mois | I31: 0.00 € | L31: Pas de modification
E32: personne | G32: mois | I32: 0.00 € | L32: Pas de modification
E33: personne | G33: mois | I33: 0.00 € | L33: Pas de modification
E34: personne | G34: mois | I34: 0.00 € | L34: Pas de modification
E35: personne | G35: mois | I35: 0.00 € | L35: Pas de modification
E36: personne | G36: mois | I36: 0.00 € | L36: Pas de modification
E37: personne | G37: mois | I37: =ROUND(D37*F37*H37,2) -> 0.00 € | L37: Pas de modification
E38: personne | G38: mois | I38: 0.00 € | L38: Pas de modification
E39: personne | G39: mois | I39: 0.00 € | L39: Pas de modification
E40: personne | G40: mois | I40: 0.00 € | L40: Pas de modification
E41: personne | G41: mois | I41: 0.00 € | L41: Pas de modification
E42: personne | G42: mois | I42: 0.00 € | L42: Pas de modification
E43: personne | G43: mois | I43: 0.00 € | L43: Pas de modification
E44: personne | G44: mois | I44: 0.00 € | L44: Pas de modification
A45: 2 | B45: Prestations externes | D45: =IF('Données de base'!C22="Oui",CONCATENATE("Aide pour remplir: ",Exemple!O12),"") -> Aide pour remplir: Veuillez insérer le contenu de la prestation; pas de détails du contrat (horaires de travail, etc.) ; n’indiquer que la valeur prévue (les directives applicables à la passation de marchés citées dans les clauses du contrat doivent être respectées !) ; veuillez utiliser une ligne budgétaire par contrat (tous les coûts occasionnés dans le cadre de l’exécution des prestations relevant d’un contrat de prestation de services (tels que formations, voyages, etc.) sont regroupés sur une ligne du budget). Événements : les prestations fournies par le même prestataire doivent être regroupées sur une ligne du budget. (P. ex. : si la restauration et le site de l’événement sont proposés par un même hôtel, les frais correspondants sont à inscrire sur une ligne, et si les nuitées sont réservées dans un autre hôtel, ces frais doivent figurer sur une autre ligne). Les recettes que le bénéficiaire perçoit dans le cadre de l’événement ne peuvent pas être financées à partir du contrat (p. ex., loyer au titre de la location de ses propres locaux). Seuls sont financés les coûts qui peuvent être vraiment justifiés.
D46: contrat/contrats | I46: 0.00 € | L46: Pas de modification
D47: contrat/contrats | I47: 0.00 € | L47: Pas de modification
D48: contrat/contrats | I48: 0.00 € | L48: Pas de modification
D49: contrat/contrats | I49: 0.00 €
D50: contrat/contrats | I50: 0.00 € | L50: Pas de modification
D51: contrat/contrats | I51: 0.00 € | L51: Pas de modification
D52: contrat/contrats | I52: 0.00 €
D53: contrat/contrats | I53: 0.00 € | L53: Pas de modification
D54: contrat/contrats | I54: 0.00 € | L54: Pas de modification
D55: contrat/contrats | I55: 0.00 € | L55: Pas de modification
D56: contrat/contrats | I56: 0.00 € | L56: Pas de modification
D57: contrat/contrats | I57: 0.00 € | L57: Pas de modification
D58: contrat/contrats | I58: 0.00 € | L58: Pas de modification
D59: contrat/contrats | I59: 0.00 € | L59: Pas de modification
D60: contrat/contrats | I60: 0.00 € | L60: Pas de modification
D61: contrat/contrats | I61: 0.00 € | L61: Pas de modification
D62: contrat/contrats | I62: 0.00 € | L62: Pas de modification
D63: contrat/contrats | I63: 0.00 € | L63: Pas de modification
D64: contrat/contrats | I64: 0.00 € | L64: Pas de modification
D65: contrat/contrats | I65: 0.00 € | L65: Pas de modification
D66: contrat/contrats | I66: 0.00 € | L66: Pas de modification
D67: contrat/contrats | I67: 0.00 € | L67: Pas de modification
D68: contrat/contrats | I68: 0.00 € | L68: Pas de modification
D69: contrat/contrats | I69: 0.00 € | L69: Pas de modification
D70: contrat/contrats | I70: 0.00 € | L70: Pas de modification
D71: contrat/contrats | I71: 0.00 € | L71: Pas de modification
D72: contrat/contrats | I72: 0.00 € | L72: Pas de modification
D73: contrat/contrats | I73: 0.00 € | L73: Pas de modification
D74: contrat/contrats | I74: 0.00 € | L74: Pas de modification
A75: 3 | B75: Frais de transport / de voyage | D75: =IF('Données de base'!C22="Oui",CONCATENATE("Aide pour remplir: ",Exemple!O23),"") -> Aide pour remplir: Les frais de voyage incluent généralement les frais de transport de tout type (par exemple, le carburant, la location de véhicules, les frais d'avion, les transferts en bus, les indemnités kilométriques (si elles sont budgétées)). Le décompte de ses frais s'effectue sur la base des factures et/ou des justificatifs appropriés pour les indemnités journalières (par exemple, les notes de frais signées par les participants). Veuillez ne pas mentionner de quantité pour les vols : tout écart nécessiterait l’établissement d’avenants, et le nombre de vols sera vérifié en cas d’audit. | I75: =SUM(I76:I93) -> 0.00 €
I76: 0.00 € | L76: Pas de modification
I77: 0.00 € | L77: Pas de modification
I78: 0.00 € | L78: Pas de modification
I79: 0.00 € | L79: Pas de modification
I80: 0.00 € | L80: Pas de modification
I81: 0.00 € | L81: Pas de modification
I82: 0.00 € | L82: Pas de modification
I83: 0.00 € | L83: Pas de modification
I84: 0.00 € | L84: Pas de modification
I85: 0.00 € | L85: Pas de modification
I86: 0.00 € | L86: Pas de modification
I87: 0.00 € | L87: Pas de modification
I88: 0.00 € | L88: Pas de modification
I89: 0.00 € | L89: Pas de modification
I90: 0.00 € | L90: Pas de modification
I91: 0.00 € | L91: Pas de modification
I92: 0.00 € | L92: Pas de modification
I93: 0.00 € | L93: Pas de modification
A94: 4 | B94: Compensation des émissions de CO2 | D94: =IF('Données de base'!C22="Oui",CONCATENATE("Aide pour remplir: ",Exemple!O31),"") -> Aide pour remplir: Les émissions de CO2 générées par les voyages en avion peuvent - si l'évitement et la réduction ne sont pas possibles - être compensées. La condition préalable est que ces voyages en avion soient décomptés dans la ligne budgétaire « Frais de transport / de voyage ». La preuve des coûts de compensation du vol est constituée de justificatifs du fournisseur de compensations, qui doivent inclure les informations suivantes : itinéraire de vol (départ et destination), date, classe de réservation et quantité de CO2 calculée. Si ces informations ne sont pas mentionnées sur les justificatifs du fournisseur de compensations, le bénéficiaire doit compléter les détails de l’itinéraire du vol (départ, destination, date, classe de réservation) et la quantité de CO2 calculée. | I94: =SUM(I95:I99) -> 0.00 €
D95: Compensation | I95: 0.00 € | L95: Pas de modification
D96: Compensation | I96: 0.00 € | L96: Pas de modification
D97: Compensation | I97: 0.00 € | L97: Pas de modification
D98: Compensation | I98: 0.00 € | L98: Pas de modification
D99: Compensation | I99: 0.00 € | L99: Pas de modification
A100: 5 | B100: Achat de matériels et d'équipements | D100: =IF('Données de base'!C22="Oui",CONCATENATE("Aide pour remplir: ",TRIM(Exemple!O38)),"") -> Aide pour remplir: Los bienes que se adquieren y acreditan en una misma factura, deben indicarse en una línea presupuestaria. Les matériels informatiques, p. ex., peuvent figurer sur une ligne ; dans ce cas, il faut préciser entre parenthèses les différents biens donc l'achat est prévu. Pour les médicaments et les pesticides et les engrais minéraux, davantage de détails sont nécessaires pour l’obtention de la validation. | I100: =SUM(I101:I116) -> 0.00 € | K100: =IF(I162>400000,1,0)+(IF(I100>(I162/2),1,0)) -> 0
I101: 0.00 € | L101: Pas de modification
I102: 0.00 € | L102: Pas de modification
I103: 0.00 € | L103: Pas de modification
I104: 0.00 € | L104: Pas de modification
I105: 0.00 € | L105: Pas de modification
I106: 0.00 € | L106: Pas de modification
I107: 0.00 € | L107: Pas de modification
I108: 0.00 € | L108: Pas de modification
I109: 0.00 € | L109: Pas de modification
I110: 0.00 € | L110: Pas de modification
I111: 0.00 € | L111: Pas de modification
I112: 0.00 € | L112: Pas de modification
I113: 0.00 € | L113: Pas de modification
I114: 0.00 € | L114: Pas de modification
I115: 0.00 € | L115: Pas de modification
I116: 0.00 € | L116: Pas de modification
A117: 6 | B117: Autres frais / Consommables | D117: =IF('Données de base'!C22="Oui",CONCATENATE("Aide pour remplir: ",TRIM(Exemple!O49)),"") -> Aide pour remplir: Veuillez noter que les coûts indirects relèvent de la catégorie des frais administratifs généraux. Seuls des coûts directs peuvent être portés sur les lignes du budget. Si des frais de location sont indiqués, seuls les coûts directs, autrement dit les loyers nets, peuvent être calculés. Les frais annexes (charges) sont à prendre en compte comme coûts indirects et à intégrer aux frais administratifs généraux. Contrairement aux biens matériels, que l’on utilise sur de longues périodes, les consommables sont des biens qui s’épuisent au fur et à mesure de l’usage, comme p. ex. le papier ou les recharges d’encre pour imprimante. | I117: =SUM(I118:I133) -> 0.00 €
I118: 0.00 € | L118: Pas de modification
I119: 0.00 € | L119: Pas de modification
I120: 0.00 € | L120: Pas de modification
I121: 0.00 € | L121: Pas de modification
I122: 0.00 € | L122: Pas de modification
I123: 0.00 € | L123: Pas de modification
I124: 0.00 € | L124: Pas de modification
I125: 0.00 € | L125: Pas de modification
I126: 0.00 € | L126: Pas de modification
I127: 0.00 € | L127: Pas de modification
I128: 0.00 € | L128: Pas de modification
I129: 0.00 € | L129: Pas de modification
I130: 0.00 € | L130: Pas de modification
I131: 0.00 € | L131: Pas de modification
I132: 0.00 € | L132: Pas de modification
I133: 0.00 € | L133: Pas de modification
A134: 7 | B134: Fonds pour l’appui direct à des bénéficiaires tiers (Remarque : Cette ligne budgétaire ne concerne que les contributions financières à des bénéficiaires tiers. Les contributions ne peuvent pas être utilisées pour l’achat de médicaments, de pesticides et/ou d’engrais minéraux. La procédure de sélection des bénéficiaires tiers doit être expliquée en détail dans la description du projet. Justificatifs : voir ligne sous-budgétaire) | D134: =IF('Données de base'!C22="Oui",CONCATENATE("Aide pour remplir: ",TRIM(Exemple!O60)),"") -> Aide pour remplir: Veuillez observer la remarque figurant dans la ligne du budget. Il faut s’entendre sur les justificatifs dans le budget et présenter les critères de sélection dans la description du projet. Important : il ne s’agit en l’occurrence que de destinataires à qui profite le projet du bénéficiaire dans le cadre, p. ex., d’une promotion de start-up, d’une promotion d’initiatives, de mesures « espèces contre travail », de concours de promotion, de bourses et autres. Il est nécessaire de s’entendre sur les justificatifs. Concernant les détails, il faut prendre conseil auprès de l'unité en charge de la gestion des contrats. | I134: =SUM(I135:I144) -> 0.00 €
B135: XXX (Cette ligne budgétaire est décomptée contre : ….) | I135: =ROUND(D135*H135,2) -> 0.00 € | L135: Pas de modification
B136: XXX (Cette ligne budgétaire est décomptée contre : ….) | I136: 0.00 € | L136: Pas de modification
B137: XXX (Cette ligne budgétaire est décomptée contre : ….) | I137: 0.00 € | L137: Pas de modification
B138: XXX (Cette ligne budgétaire est décomptée contre : ….) | I138: 0.00 € | L138: Pas de modification
B139: XXX (Cette ligne budgétaire est décomptée contre : ….) | I139: 0.00 € | L139: Pas de modification
B140: XXX (Cette ligne budgétaire est décomptée contre : ….) | I140: 0.00 € | L140: Pas de modification
B141: XXX (Cette ligne budgétaire est décomptée contre : ….) | I141: 0.00 € | L141: Pas de modification
B142: XXX (Cette ligne budgétaire est décomptée contre : ….) | I142: 0.00 € | L142: Pas de modification
B143: XXX (Cette ligne budgétaire est décomptée contre : ….) | I143: 0.00 € | L143: Pas de modification
B144: XXX (Cette ligne budgétaire est décomptée contre : ….) | I144: 0.00 € | L144: Pas de modification
A145: 8 | B145: Fair shared costs (selon le modèle de coûts partagés équitables du nom du bénéficiaire) | D145: =IF('Données de base'!C22="Oui",CONCATENATE("Aide pour remplir: ",TRIM(Exemple!O65)),"") -> Aide pour remplir: Cette ligne budgétaire est réservée aux organisations qui disposent d’une répartition ou d’une imputation des frais généraux dans leurs systèmes de comptabilité et peuvent en apporter la preuve en conséquence, à condition que ces frais ne soient pas imputés aux frais généraux administratifs. Le type de justificatif est fixé pour chaque cas particulier. Un exemple concret est un justificatif exprimé en pourcentage, sur la base des frais généraux et des relevés d’heures. Veuillez noter l’onglet « Exemple » et ajouter le **texte de note. | I145: =SUM(I146:I150) -> 0.00 €
I146: 0.00 € | L146: Pas de modification
I147: 0.00 € | L147: Pas de modification
I148: 0.00 € | L148: Pas de modification
I149: 0.00 € | L149: Pas de modification
I150: 0.00 € | L150: Pas de modification
B151: Sous-total - coûts directs | I151: =I145+I134+I117+I100+I94+I75+I45+I7 -> 0.00 €
A152: 9 | B152: Frais administratifs | D152: =IF('Données de base'!C22="Oui",CONCATENATE("Aide pour remplir: ",TRIM(Exemple!O69)),"") -> Aide pour remplir: Les frais généraux administratifs sont normalement pris en charge par le bénéficiaire du financement en tant que contribution propre. Si une telle prise en charge n’est pas possible, la GIZ peut prendre en charge une petite partie des frais administratifs généraux. La nature et le montant des frais doivent , le cas échéant, être vérifiés au préalable par un*e expert*e-comptable. Si les frais généraux d'administration se rapportent à un plus petit nombre de lignes budgétaires, il est nécessaire d'en informer la gestion des contrats. | I152: =I153 -> 0.00 €
B153: Frais administratifs(pour les lignes budgétaires 1-X) | D153: 10.00% | H153: =I151 -> 0.00 € | I153: =ROUND(D153*H153,2) -> 0.00 € | L153: Pas de modification
B154: Sous-total - Financement de la GIZ (sur présentation de justificatifs - jusqu’à concurrence de - )* (coûts directs + frais administratifs généraux) | I154: =I151+I152 -> 0.00 €
A155: 10 | B155: Transfert de fonds à des destinataires tiers - un budget détaillé doit être soumis - | D155: =IF('Données de base'!C22="Oui",CONCATENATE("Aide pour remplir: ",TRIM(Exemple!O72)),"") -> Aide pour remplir: Il s’agit des destinataires tiers (co-implémenteurs). Ce sont des partenaires qui mettent en œuvre une partie du projet en toute autonomie. Il faut soumettre un budget séparé, et une évaluation des capacités commerciales et juridiques (portant seulement sur les critères personnalité juridique et statut d’utilité publique) doit être effectuée. | I155: =SUM(I156:I161) -> 0.00 €
B156: XYZ (nom du destinataire tiers) | D156: transfert | I156: 0.00 € | L156: Pas de modification
B157: XYZ (nom du destinataire tiers) | D157: transfert | I157: =H157 -> 0.00 € | L157: Pas de modification
B158: XYZ (nom du destinataire tiers) | D158: transfert | I158: 0.00 € | L158: Pas de modification
B159: XYZ (nom du destinataire tiers) | D159: transfert | I159: 0.00 € | L159: Pas de modification
B160: XYZ (nom du destinataire tiers) | D160: transfert | I160: 0.00 € | L160: Pas de modification
B161: XYZ (nom du destinataire tiers) | D161: transfert | I161: 0.00 € | K161: Parts en pourcentage | L161: Pas de modification
B162: Contribution financière de la GIZ (sur présentation de justificatifs - jusqu’à concurrence de) | I162: =I154+I155 -> 0.00 € | K162: =IFERROR(I162/$I$172,"") -> 
A163: 11 | B163: Contribution propre / Financement par les tiers | J163: =SUM(J164:J171) -> 0.00 €
B164: =_xlfn.IFS('Données de base'!C10="Non","Pas de contribution propre", 'Données de base'!C10="Oui",'Données de base'!C4, 'Données de base'!C10="Sélectionner", "Veuillez renseigner toutes les données de base",TRUE,"") -> Veuillez renseigner toutes les données de base | D164: contribution | K164: =IFERROR(J164/$I$172,"") ->  | L164: Pas de modification
B165: =_xlfn.IFS('Données de base'!C11=0,"Pas de financement par les tiers",'Données de base'!C11= "Sélectionner","Veuillez renseigner toutes les données de base", 'Données de base'!C11>0,'Données de base'!E11,TRUE,"") -> Veuillez renseigner toutes les données de base | D165: contribution | K165: =IFERROR(J165/$I$172,"") ->  | L165: Pas de modification
B166: =_xlfn.IFS('Données de base'!C11=0,"Pas de financement par les tiers",'Données de base'!C11= "Sélectionner","Veuillez renseigner toutes les données de base", 'Données de base'!C11>1,'Données de base'!E12,TRUE,"") -> Veuillez renseigner toutes les données de base | D166: contribution | L166: Pas de modification
B167: =_xlfn.IFS('Données de base'!C11=0,"Pas de financement par les tiers",'Données de base'!C11= "Sélectionner","Veuillez renseigner toutes les données de base", 'Données de base'!C11>2,'Données de base'!E13,TRUE,"") -> Veuillez renseigner toutes les données de base | D167: contribution | L167: Pas de modification
B168: =_xlfn.IFS('Données de base'!C11=0,"Pas de financement par les tiers",'Données de base'!C11= "Sélectionner","Veuillez renseigner toutes les données de base", 'Données de base'!C11>3,'Données de base'!E14,TRUE,"") -> Veuillez renseigner toutes les données de base | D168: contribution | L168: Pas de modification
B169: =_xlfn.IFS('Données de base'!C11=0,"Pas de financement par les tiers",'Données de base'!C11= "Sélectionner","Veuillez renseigner toutes les données de base", 'Données de base'!C11>4,'Données de base'!E15,TRUE,"") -> Veuillez renseigner toutes les données de base | D169: contribution | L169: Pas de modification
B170: =_xlfn.IFS('Données de base'!C11=0,"Pas de financement par les tiers",'Données de base'!C11= "Sélectionner","Veuillez renseigner toutes les données de base", 'Données de base'!C11>5,'Données de base'!E16,TRUE,"") -> Veuillez renseigner toutes les données de base | D170: contribution | L170: Pas de modification
B171: =_xlfn.IFS('Données de base'!C11=0,"Pas de financement par les tiers",'Données de base'!C11= "Sélectionner","Veuillez renseigner toutes les données de base", 'Données de base'!C11>6,'Données de base'!E17,TRUE,"") -> Veuillez renseigner toutes les données de base | D171: contribution | K171: =IFERROR(J171/$I$172,"") ->  | L171: Pas de modification
B172: Le budget total du projet à financer : | I172: =I162+J163 -> 0.00 € | K172: =SUM(K162:K171) -> 0.00%
B174: * Toutes les lignes budgétaires (à l’exception des frais administratifs généraux) doivent faire l’objet d’un décompte établi sur la base de justificatifs.
B176: À noter : dans les cas où des marchés passés pour des services externes et/ou des biens matériels et/ou des fournitures doivent être financés par les fonds de la GIZ, les directives applicables à la passation de marchés spécifiées dans les clauses du contrat doivent être respectées !
B178: Les bénéfices du bénéficiaire ne sont pas financés.
B180: En cas d’avenants : veuillez procéder aux ajustements budgétaires sur la base du dernier budget convenu au contrat et noter les modifications en couleur. La GIZ ne peut pas prendre en charge les coûts dûs aux fluctuations monétaires.

Sheet Transfert du financement
B1: CONFIDENTIAL
B2: Budget / plan de financement - Annexe 1 | D2: Nom du destinataire tiers: | J2: ='Données de base'!C24 -> 00:00:00 | N2: Keine Änderung
B3: =IF(NOT(ISBLANK('Données de base'!C8)),CONCATENATE("Numéro de contrat: ",'Données de base'!C8),"") ->  | N3: Änderung
B4: Description | C4: Code | D4: Quan-tité / Nombre | E4: Unité (personne) | F4: Quan-tité / Nombre | G4: Unité (p. ex. mois, contrat, vol…) | H4: Montant unitaire éligible en EUR (max.) (prix par unité) | I4: Total Contribution financière de la GIZ en EUR (max.) | J4: Contribution propre / Financement de tiers en EUR (max.) | L4: =IF($L$5="VE",CONCATENATE("En cas d'avenants",CHAR(10),"cette ligne budgétaire a-t-elle été modifiée ?"),"") -> 
B5: =IF('Données de base'!C22="Oui",CONCATENATE("Remarques: Les cellules sur fond bleu sont remplies par le bénéficiaire ","")) -> Remarques: Les cellules sur fond bleu sont remplies par le bénéficiaire | I5: =IF('Données de base'!C22="Oui","Remarques:Les cellules sont calculées automatiquement.","") -> Remarques:Les cellules sont calculées automatiquement. | L5: =IF('Données de base'!C6="Adaptation du contrat","VE","NOVE") -> NOVE
A6: 1 | B6: Ressources humaines (Remarque : Seuls les frais de personnel individuels (salaire brut mensuel de l’employeur*euse) peuvent être décomptés. Les suppléments tels que les frais généraux du personnel, qui sont calculés au prorata du personnel, ne sont pas éligibles. Veuillez insérer uniquement les noms de fonction, pas les noms de personnes individuelles. a) Frais pour les collaborateurs*rices employé*e*s par le bénéficiaire (salarié*e*s de votre organisation uniquement) : La preuve dois être fournie sous forme de fiches de salaire ou, en cas de financement proportionnel, sous forme de fiches de salaire accompagnées des relevés d'heures correspondants (voir lien en 1b). b)Frais pour les consultant·e·s intégré·e·s qui sont des personnes indépendantes ou employées par un tiers qui sont détachées auprès du destinataire, qui n’interviennent donc pas sur la base d’un contrat de travail avec le destinataire, mais qui travaillent néanmoins en suivant les instructions/sous la supervision du destinataire, à condition que cela soit autorisé par le droit applicable au contrat du·de la consultant·e intégré·e. Pour les formes de preuve, voir: Exigences concernant le budget et la gestion financière (annexe 3a).) | D6: =IF('Données de base'!C22="Oui",CONCATENATE("Aide pour remplir: ",Exemple!O6),"") -> Aide pour remplir: La colonne « Montant unitaire éligible (max.) » doit toujours indiquer le salaire brut (mensuel) de l’employeur*euse. Pour les emplois à temps partiel, veuillez indiquer le pourcentage à la colonne D. Les frais de personnel supplémentaires qui s’appliquent en vertu de la législation dans votre pays peuvent être pris en compte. En principe, les cotisations sociales et les paiements convenus dans le contrat de travail ou la convention collective peuvent être financés (les gratifications ou les primes d’intéressement au bénéfice sont en revanche exclues). Les coûts accessoires d’une autre nature doivent être discutés et vérifiés avant l’établissement du contrat et faire l’objet d’un commentaire dans la ligne budgétaire. Les contrats portant sur des petits boulots (« mini-jobs ») ou des jobs d’étudiant sont à affecter au poste Coûts de personnel, même s’il n’y a pas de cotisations sociales à payer. Si plusieurs personnes doivent être financées au prorata (p. ex. 3 personnes à raison de 75 %), veuillez augmenter le nombre de mois en conséquence et inscrire le nombre de personnes dans la description de la ligne budgétaire. | I6: =SUM(I7:I43) -> 0.00 € | J6: Le financement proportionnel des lignes budgétaires doit être évité et ne s’applique qu’aux frais de personnel et aux coûts de partage équitable (fair shared costs) | K6: =IF(SUM(I6,#REF!,I44)>0.4*I144,1,0) ->  | L6: =IF(L5="VE","À NOTER . La GIZ ne peut pas prendre en charge les coûts dus aux fluctuations monétaires.'Transfert du financement'!K9","") -> 
E7: personne | G7: mois | I7: =ROUND(D7*F7*H7,2) -> 0.00 € | L7: Keine Änderung
E8: personne | G8: mois | I8: =ROUND(D8*F8*H8,2) -> 0.00 € | L8: Keine Änderung
E9: personne | G9: mois | I9: 0.00 € | L9: Keine Änderung
E10: personne | G10: mois | I10: 0.00 € | L10: Pas de modification
E11: personne | G11: mois | I11: 0.00 € | L11: Pas de modification
E12: personne | G12: mois | I12: 0.00 € | L12: Pas de modification
E13: personne | G13: mois | I13: 0.00 € | L13: Pas de modification
E14: personne | G14: mois | I14: 0.00 € | L14: Pas de modification
E15: personne | G15: mois | I15: 0.00 € | L15: Pas de modification
E16: personne | G16: mois | I16: 0.00 € | L16: Keine Änderung
E17: personne | G17: mois | I17: 0.00 € | L17: Pas de modification
E18: personne | G18: mois | I18: 0.00 € | L18: Pas de modification
E19: personne | G19: mois | I19: 0.00 € | L19: Pas de modification
E20: personne | G20: mois | I20: 0.00 € | L20: Pas de modification
E21: personne | G21: mois | I21: 0.00 € | L21: Keine Änderung
E22: personne | G22: mois | I22: 0.00 € | L22: Pas de modification
E23: personne | G23: mois | I23: 0.00 € | L23: Pas de modification
E24: personne | G24: mois | I24: 0.00 € | L24: Pas de modification
E25: personne | G25: mois | I25: 0.00 € | L25: Pas de modification
E26: personne | G26: mois | I26: 0.00 € | L26: Keine Änderung
E27: personne | G27: mois | I27: 0.00 € | L27: Pas de modification
E28: personne | G28: mois | I28: 0.00 € | L28: Pas de modification
E29: personne | G29: mois | I29: 0.00 € | L29: Pas de modification
E30: personne | G30: mois | I30: 0.00 € | L30: Pas de modification
E31: personne | G31: mois | I31: 0.00 € | L31: Pas de modification
E32: personne | G32: mois | I32: 0.00 € | L32: Pas de modification
E33: personne | G33: mois | I33: 0.00 € | L33: Pas de modification
E34: personne | G34: mois | I34: 0.00 € | L34: Pas de modification
E35: personne | G35: mois | I35: 0.00 € | L35: Pas de modification
E36: personne | G36: mois | I36: 0.00 € | L36: Pas de modification
E37: personne | G37: mois | I37: 0.00 € | L37: Pas de modification
E38: personne | G38: mois | I38: 0.00 € | L38: Pas de modification
E39: personne | G39: mois | I39: 0.00 € | L39: Pas de modification
E40: personne | G40: mois | I40: 0.00 € | L40: Pas de modification
E41: personne | G41: mois | I41: 0.00 € | L41: Pas de modification
E42: personne | G42: mois | I42: 0.00 € | L42: Pas de modification
E43: personne | G43: mois | I43: 0.00 € | L43: Keine Änderung
A44: 2 | B44: Prestations externes | D44: =IF('Données de base'!C22="Oui",CONCATENATE("Aide pour remplir: ",Exemple!O12),"") -> Aide pour remplir: Veuillez insérer le contenu de la prestation; pas de détails du contrat (horaires de travail, etc.) ; n’indiquer que la valeur prévue (les directives applicables à la passation de marchés citées dans les clauses du contrat doivent être respectées !) ; veuillez utiliser une ligne budgétaire par contrat (tous les coûts occasionnés dans le cadre de l’exécution des prestations relevant d’un contrat de prestation de services (tels que formations, voyages, etc.) sont regroupés sur une ligne du budget). Événements : les prestations fournies par le même prestataire doivent être regroupées sur une ligne du budget. (P. ex. : si la restauration et le site de l’événement sont proposés par un même hôtel, les frais correspondants sont à inscrire sur une ligne, et si les nuitées sont réservées dans un autre hôtel, ces frais doivent figurer sur une autre ligne). Les recettes que le bénéficiaire perçoit dans le cadre de l’événement ne peuvent pas être financées à partir du contrat (p. ex., loyer au titre de la location de ses propres locaux). Seuls sont financés les coûts qui peuvent être vraiment justifiés. | I44: =SUM(I45:I61) -> 0.00 €
D45: contrat/contrats | I45: 0.00 € | L45: Keine Änderung
D46: contrat/contrats | I46: 0.00 € | L46: Pas de modification
D47: contrat/contrats | I47: 0.00 € | L47: Pas de modification
D48: contrat/contrats | I48: 0.00 € | L48: Pas de modification
D49: contrat/contrats | I49: 0.00 € | L49: Keine Änderung
D50: contrat/contrats | I50: 0.00 € | L50: Pas de modification
D51: contrat/contrats | I51: 0.00 € | L51: Pas de modification
D52: contrat/contrats | I52: 0.00 € | L52: Pas de modification
D53: contrat/contrats | I53: 0.00 € | L53: Pas de modification
D54: contrat/contrats | I54: 0.00 € | L54: Pas de modification
D55: contrat/contrats | I55: 0.00 € | L55: Pas de modification
D56: contrat/contrats | I56: 0.00 € | L56: Pas de modification
D57: contrat/contrats | I57: 0.00 € | L57: Keine Änderung
D58: contrat/contrats | I58: 0.00 € | L58: Pas de modification
D59: contrat/contrats | I59: 0.00 € | L59: Pas de modification
D60: contrat/contrats | I60: 0.00 € | L60: Pas de modification
D61: contrat/contrats | I61: 0.00 € | L61: Keine Änderung
A62: 3 | B62: Frais de transport / de voyage | D62: =IF('Données de base'!C22="Oui",CONCATENATE("Aide pour remplir: ",Exemple!O23),"") -> Aide pour remplir: Les frais de voyage incluent généralement les frais de transport de tout type (par exemple, le carburant, la location de véhicules, les frais d'avion, les transferts en bus, les indemnités kilométriques (si elles sont budgétées)). Le décompte de ses frais s'effectue sur la base des factures et/ou des justificatifs appropriés pour les indemnités journalières (par exemple, les notes de frais signées par les participants). Veuillez ne pas mentionner de quantité pour les vols : tout écart nécessiterait l’établissement d’avenants, et le nombre de vols sera vérifié en cas d’audit. | I62: =SUM(I63:I78) -> 0.00 €
I63: 0.00 € | L63: Pas de modification
I64: 0.00 € | L64: Pas de modification
I65: 0.00 € | L65: Pas de modification
I66: 0.00 € | L66: Pas de modification
I67: 0.00 € | L67: Pas de modification
I68: 0.00 € | L68: Pas de modification
I69: 0.00 € | L69: Pas de modification
I70: 0.00 € | L70: Keine Änderung
I71: 0.00 € | L71: Pas de modification
I72: 0.00 € | L72: Pas de modification
I73: 0.00 € | L73: Pas de modification
I74: 0.00 € | L74: Pas de modification
I75: 0.00 € | L75: Pas de modification
I76: 0.00 € | L76: Pas de modification
I77: 0.00 € | L77: Pas de modification
I78: 0.00 € | L78: Keine Änderung
A79: 4 | B79: Compensation des émissions de CO2 | D79: =IF('Données de base'!C22="Oui",CONCATENATE("Aide pour remplir: ",Exemple!O31),"") -> Aide pour remplir: Les émissions de CO2 générées par les voyages en avion peuvent - si l'évitement et la réduction ne sont pas possibles - être compensées. La condition préalable est que ces voyages en avion soient décomptés dans la ligne budgétaire « Frais de transport / de voyage ». La preuve des coûts de compensation du vol est constituée de justificatifs du fournisseur de compensations, qui doivent inclure les informations suivantes : itinéraire de vol (départ et destination), date, classe de réservation et quantité de CO2 calculée. Si ces informations ne sont pas mentionnées sur les justificatifs du fournisseur de compensations, le bénéficiaire doit compléter les détails de l’itinéraire du vol (départ, destination, date, classe de réservation) et la quantité de CO2 calculée. | I79: =SUM(I80:I91) -> 0.00 €
D80: Compensation | I80: 0.00 € | L80: Pas de modification
D81: Compensation | I81: 0.00 € | L81: Keine Änderung
D82: Compensation | I82: 0.00 € | L82: Pas de modification
D83: Compensation | I83: 0.00 € | L83: Pas de modification
D84: Compensation | I84: 0.00 € | L84: Pas de modification
D85: Compensation | I85: 0.00 € | L85: Pas de modification
D86: Compensation | I86: 0.00 € | L86: Pas de modification
D87: Compensation | I87: 0.00 € | L87: Pas de modification
D88: Compensation | I88: 0.00 € | L88: Keine Änderung
D89: Compensation | I89: 0.00 € | L89: Pas de modification
D90: Compensation | I90: 0.00 € | L90: Pas de modification
D91: Compensation | I91: 0.00 € | L91: Keine Änderung
A92: 5 | B92: Achat de matériels et équipements | D92: =IF('Données de base'!C22="Oui",CONCATENATE("Aide pour remplir: ",TRIM(Exemple!O38)),"") -> Aide pour remplir: Los bienes que se adquieren y acreditan en una misma factura, deben indicarse en una línea presupuestaria. Les matériels informatiques, p. ex., peuvent figurer sur une ligne ; dans ce cas, il faut préciser entre parenthèses les différents biens donc l'achat est prévu. Pour les médicaments et les pesticides et les engrais minéraux, davantage de détails sont nécessaires pour l’obtention de la validation. | I92: =SUM(I93:I108) -> 0.00 €
I93: 0.00 € | L93: Keine Änderung
I94: 0.00 € | L94: Pas de modification
I95: 0.00 € | L95: Pas de modification
I96: 0.00 € | L96: Pas de modification
I97: 0.00 € | L97: Pas de modification
I98: 0.00 € | L98: Pas de modification
I99: 0.00 € | L99: Pas de modification
I100: 0.00 € | L100: Keine Änderung
I101: 0.00 € | L101: Pas de modification
I102: 0.00 € | L102: Pas de modification
I103: 0.00 € | L103: Pas de modification
I104: 0.00 € | L104: Keine Änderung
I105: 0.00 € | L105: Pas de modification
I106: 0.00 € | L106: Pas de modification
I107: 0.00 € | L107: Pas de modification
I108: 0.00 € | L108: Keine Änderung
A109: 5 | B109: Autres frais / Consommables | D109: =IF('Données de base'!C22="Oui",CONCATENATE("Aide pour remplir: ",TRIM(Exemple!O49)),"") -> Aide pour remplir: Veuillez noter que les coûts indirects relèvent de la catégorie des frais administratifs généraux. Seuls des coûts directs peuvent être portés sur les lignes du budget. Si des frais de location sont indiqués, seuls les coûts directs, autrement dit les loyers nets, peuvent être calculés. Les frais annexes (charges) sont à prendre en compte comme coûts indirects et à intégrer aux frais administratifs généraux. Contrairement aux biens matériels, que l’on utilise sur de longues périodes, les consommables sont des biens qui s’épuisent au fur et à mesure de l’usage, comme p. ex. le papier ou les recharges d’encre pour imprimante. | I109: =SUM(I110:I125) -> 0.00 €
I110: 0.00 € | L110: Keine Änderung
I111: 0.00 € | L111: Pas de modification
I112: 0.00 € | L112: Keine Änderung
I113: 0.00 € | L113: Pas de modification
I114: 0.00 € | L114: Pas de modification
I115: 0.00 € | L115: Pas de modification
I116: 0.00 € | L116: Pas de modification
I117: 0.00 € | L117: Pas de modification
I118: 0.00 € | L118: Pas de modification
I119: 0.00 € | L119: Keine Änderung
I120: 0.00 € | L120: Pas de modification
I121: 0.00 € | L121: Pas de modification
I122: 0.00 € | L122: Pas de modification
I123: 0.00 € | L123: Pas de modification
I124: 0.00 € | L124: Pas de modification
I125: 0.00 € | L125: Keine Änderung
A126: 7 | B126: Fonds pour l’appui direct à des bénéficiaires tiers (Remarque : Cette ligne budgétaire ne concerne que les contributions financières à des bénéficiaires tiers. Les contributions ne peuvent pas être utilisées pour l’achat de médicaments, de pesticides et/ou d’engrais minéraux. La procédure de sélection des bénéficiaires tiers doit être expliquée en détail dans la description du projet. Justificatifs : voir ligne sous-budgétaire) | D126: =IF('Données de base'!C22="Oui",CONCATENATE("Aide pour remplir: ",TRIM(Exemple!O60)),"") -> Aide pour remplir: Veuillez observer la remarque figurant dans la ligne du budget. Il faut s’entendre sur les justificatifs dans le budget et présenter les critères de sélection dans la description du projet. Important : il ne s’agit en l’occurrence que de destinataires à qui profite le projet du bénéficiaire dans le cadre, p. ex., d’une promotion de start-up, d’une promotion d’initiatives, de mesures « espèces contre travail », de concours de promotion, de bourses et autres. Il est nécessaire de s’entendre sur les justificatifs. Concernant les détails, il faut prendre conseil auprès de l'unité en charge de la gestion des contrats. | I126: =SUM(I127:I132) -> 0.00 € | L126: =IF(L5="VE","ACHTUNG: Kosten, die aufgrund von Währungsschwankungen entstehen, können nicht von der GIZ übernommen werden.","") -> 
B127: XXX (Cette ligne budgétaire est décomptée contre : ….) | I127: =ROUND(D127*H127,2) -> 0 | L127: Keine Änderung
B128: XXX (Cette ligne budgétaire est décomptée contre : ….) | I128: =ROUND(D128*H128,2) -> 0 | L128: Pas de modification
B129: XXX (Cette ligne budgétaire est décomptée contre : ….) | I129: 0 | L129: Pas de modification
B130: XXX (Cette ligne budgétaire est décomptée contre : ….) | I130: 0 | L130: Pas de modification
B131: XXX (Cette ligne budgétaire est décomptée contre : ….) | I131: 0 | L131: Pas de modification
B132: XXX (Cette ligne budgétaire est décomptée contre : ….) | I132: 0 | L132: Keine Änderung
A133: 8 | B133: Fair shared costs (selon le modèle de coûts partagés équitables du nom du bénéficiaire) | D133: =IF('Données de base'!C22="Oui",CONCATENATE("Aide pour remplir: ",TRIM(Exemple!O65)),"") -> Aide pour remplir: Cette ligne budgétaire est réservée aux organisations qui disposent d’une répartition ou d’une imputation des frais généraux dans leurs systèmes de comptabilité et peuvent en apporter la preuve en conséquence, à condition que ces frais ne soient pas imputés aux frais généraux administratifs. Le type de justificatif est fixé pour chaque cas particulier. Un exemple concret est un justificatif exprimé en pourcentage, sur la base des frais généraux et des relevés d’heures. Veuillez noter l’onglet « Exemple » et ajouter le **texte de note. | I133: =SUM(I134:I140) -> 0.00 € | L133: Pas de modification
I134: 0.00 € | L134: Keine Änderung
I135: 0.00 € | L135: Pas de modification
I136: 0.00 € | L136: Pas de modification
I137: 0.00 € | L137: Pas de modification
I138: 0.00 € | L138: Pas de modification
I139: 0.00 € | L139: Keine Änderung
I140: 0.00 € | L140: Pas de modification
B141: Sous-total - Coûts directs | I141: =I109+I79+I44+I6+I62+I92+I126+I133 -> 0.00 €
A142: 9 | B142: Frais administratifs | D142: =IF('Données de base'!C22="Oui",CONCATENATE("Aide pour remplir: ",TRIM(Exemple!O69)),"") -> Aide pour remplir: Les frais généraux administratifs sont normalement pris en charge par le bénéficiaire du financement en tant que contribution propre. Si une telle prise en charge n’est pas possible, la GIZ peut prendre en charge une petite partie des frais administratifs généraux. La nature et le montant des frais doivent , le cas échéant, être vérifiés au préalable par un*e expert*e-comptable. Si les frais généraux d'administration se rapportent à un plus petit nombre de lignes budgétaires, il est nécessaire d'en informer la gestion des contrats. | I142: =I143 -> 0.00 €
B143: Frais administratifs(pour les lignes budgétaires 1-X) | D143: 0.00% | H143: =I141 -> 0.00 € | I143: =ROUND(D143*H143,) -> 0.00 € | L143: Keine Änderung
B144: Sous-total - contribution financière de la GIZ (sur présentation de justificatifs - jusqu’à concurrence de - )* (coûts directs + frais administratifs généraux) | I144: =I141+I142 -> 0.00 €
B145: Contribution financière de la GIZ (sur présentation de justificatifs - jusqu’à concurrence de) | I145: =I144 -> 0.00 €
B147: * Toutes les lignes budgétaires (à l’exception des frais administratifs généraux) doivent faire l’objet d’un décompte établi sur la base de justificatifs.
B149: À noter : dans les cas où des marchés passés pour des services externes et/ou des biens matériels et/ou des fournitures doivent être financés par les fonds de la GIZ, les directives applicables à la passation de marchés spécifiées dans les clauses du contrat doivent être respectées !
B151: Les bénéfices du bénéficiaire ne sont pas financés.
B153: En cas d’avenants : veuillez procéder aux ajustements budgétaires sur la base du dernier budget convenu au contrat et noter les modifications en couleur. La GIZ ne peut pas prendre en charge les coûts dûs aux fluctuations monétaires (l'inflation)

Sheet Exemple
B1: CONFIDENTIAL
A2: Budget / plan de financement - Annexe 1 | J2: ='Données de base'!C35 -> 00:00:00 | O2: Remarques concernant le traitement : Cet exemple a seulement valeur d’orientation pour l’onglet « Budget Financements ».
J3: 2025-02
B4: Description | C4: Code | D4: Quantité / Nombre | E4: Unité (personne) | F4: Quantité / Nombre | G4: Unité (p. ex. mois, contrat, vol…) | H4: Montant unitaire éligible en EUR (max.) (prix par unité) | I4: Total Contribution financière de la GIZ en EUR (max.) | J4: Contribution propre / Financement de tiers en EUR (max.) | O4: Remarques générales : Ce format de budget sert de base de décompte. Pour votre usage interne, n’hésitez pas à créer d’autres fichiers contenant des informations plus détaillées. Tous les postes inscrits au budget doivent également figurer dans la description du projet afin que le lien avec le projet soit visible. Le tableau est pourvu de formules qui doivent être conservées. Veuillez vous tenir au format à deux décimales. Il est recommandé d’arrondir les unités dans la mesure du possible. Les coûts sont convenus avec une valeur « max. ».
B5: =IF('Données de base'!C22="Ja",CONCATENATE("Hinweis: Blaue Felder durch ",IF('Données de base'!C22=""," Zuschussempfänger",'Données de base'!C22)," auszufüllen"),"") ->  | I5: =IF('Données de base'!C22="Ja","Hinweis: Wird automatisch ausgefüllt","") ->  | L5: =IF('Données de base'!C24="Vertragsanpassung","VE","NOVE") -> NOVE | O5: Remarques concernant l’établissement du budget
A6: 1 | B6: Ressources humaines (Remarque : Seuls les frais de personnel individuels (salaire brut mensuel de l’employeur*euse) peuvent être décomptés. Les suppléments tels que les frais généraux du personnel, qui sont calculés au prorata du personnel, ne sont pas éligibles. Veuillez insérer uniquement les noms de fonction, pas les noms de personnes individuelles. a) Frais pour les collaborateurs*rices employé*e*s par le bénéficiaire (salarié*e*s de votre organisation uniquement) : La preuve dois être fournie sous forme de fiches de salaire ou, en cas de financement proportionnel, sous forme de fiches de salaire accompagnées des relevés d'heures correspondants (voir lien en 1b). b) Frais pour les consultant·e·s intégré·e·s qui sont des personnes indépendantes ou employées par un tiers qui sont détachées auprès du destinataire, qui n’interviennent donc pas sur la base d’un contrat de travail avec le destinataire, mais qui travaillent néanmoins en suivant les instructions/sous la supervision du destinataire, à condition que cela soit autorisé par le droit applicable au contrat du·de la consultant·e intégré·e. Pour les formes de preuve, voir: Exigences concernant le budget et la gestion financière (annexe 3a).) | I6: =SUM(I7:I11) -> 94,000.00 € | J6: Le financement proportionnel des lignes budgétaires doit être évité et ne s’applique qu’aux frais de personnel et aux coûts de partage équitable (coûts « Fair-Shared ») Les autres coûts qui surviennent dans le cadre de la mise en œuvre du projet et qui ne doivent pas être pris en charge par la GIZ doivent être calculés séparément, soit en tant que contribution propre, soit en tant que contribution d'un tiers. | L6: =IF(L5="VE","ACHTUNG: Kosten, die aufgrund von Währungsschwankungen entstehen, können nicht von der GIZ übernommen werden.","") ->  | O6: La colonne « Montant unitaire éligible (max.) » doit toujours indiquer le salaire brut (mensuel) de l’employeur*euse. Pour les emplois à temps partiel, veuillez indiquer le pourcentage à la colonne D. Les frais de personnel supplémentaires qui s’appliquent en vertu de la législation dans votre pays peuvent être pris en compte. En principe, les cotisations sociales et les paiements convenus dans le contrat de travail ou la convention collective peuvent être financés (les gratifications ou les primes d’intéressement au bénéfice sont en revanche exclues). Les coûts accessoires d’une autre nature doivent être discutés et vérifiés avant l’établissement du contrat et faire l’objet d’un commentaire dans la ligne budgétaire. Les contrats portant sur des petits boulots (« mini-jobs ») ou des jobs d’étudiant sont à affecter au poste Coûts de personnel, même s’il n’y a pas de cotisations sociales à payer. Si plusieurs personnes doivent être financées au prorata (p. ex. 3 personnes à raison de 75 %), veuillez augmenter le nombre de mois en conséquence et inscrire le nombre de personnes dans la description de la ligne budgétaire.
B7: Gestionnaire de projet | D7: 100% | E7: personne | F7: 20 | G7: mois | H7: 3,000.00 € | I7: =D7*F7*H7 -> 60,000.00 €
B8: Gestionnaire financier·ère | D8: 50% | E8: personne | F8: 20 | G8: mois | H8: 2,200.00 € | I8: =D8*F8*H8 -> 22,000.00 €
B9: Severance Payments | D9: 100% | E9: personne | F9: 20 | G9: mois | H9: 600.00 € | I9: =D9*F9*H9 -> 12,000.00 €
E10: personne | G10: mois | I10: 0.00 €
E11: personne | G11: mois | I11: 0.00 €
A12: 2 | B12: Prestations externes | I12: =SUM(I13:I22) -> 7,000.00 € | O12: Veuillez insérer le contenu de la prestation; pas de détails du contrat (horaires de travail, etc.) ; n’indiquer que la valeur prévue (les directives applicables à la passation de marchés citées dans les clauses du contrat doivent être respectées !) ; veuillez utiliser une ligne budgétaire par contrat (tous les coûts occasionnés dans le cadre de l’exécution des prestations relevant d’un contrat de prestation de services (tels que formations, voyages, etc.) sont regroupés sur une ligne du budget). Événements : les prestations fournies par le même prestataire doivent être regroupées sur une ligne du budget. (P. ex. : si la restauration et le site de l’événement sont proposés par un même hôtel, les frais correspondants sont à inscrire sur une ligne, et si les nuitées sont réservées dans un autre hôtel, ces frais doivent figurer sur une autre ligne). Les recettes que le bénéficiaire perçoit dans le cadre de l’événement ne peuvent pas être financées à partir du contrat (p. ex., loyer au titre de la location de ses propres locaux). Seuls sont financés les coûts qui peuvent être vraiment justifiés.
B13: Modération | D13: contrat/contrats | I13: 5,000.00 €
B14: Frais de restauration et de location de salles | D14: contrat/contrats | H14: 2000 | I14: =H14 -> 2,000.00 €
B15: Expert·e en héliotechnique | D15: contrat/contrats | I15: 0.00 €
B16: Expert·e en... | D16: contrat/contrats | I16: 0.00 €
B17: Personnel externe (qui n’est pas employé par le bénéficiaire en tant que personnel salarié assujetti à la sécurité sociale) | D17: contrat/contrats | I17: 0.00 €
B18: Marchés de conseil | D18: contrat/contrats | I18: 0.00 €
B19: Entreprises externes (transport en bus p. ex.) | D19: contrat/contrats | I19: 0.00 €
D20: contrat/contrats | I20: 0.00 €
D21: contrat/contrats | I21: 0.00 €
D22: contrat/contrats | I22: 0.00 €
A23: 3 | B23: Frais de transport / de voyage | I23: =SUM(I24:I30) -> 14,500.00 € | O23: Les frais de voyage incluent généralement les frais de transport de tout type (par exemple, le carburant, la location de véhicules, les frais d'avion, les transferts en bus, les indemnités kilométriques (si elles sont budgétées)). Le décompte de ses frais s'effectue sur la base des factures et/ou des justificatifs appropriés pour les indemnités journalières (par exemple, les notes de frais signées par les participants). Veuillez ne pas mentionner de quantité pour les vols : tout écart nécessiterait l’établissement d’avenants, et le nombre de vols sera vérifié en cas d’audit.
B24: Vols internationaux | D24: vols | I24: 4,000.00 €
B25: Vols nationaux | D25: vols | H25: 500 | I25: =H25 -> 500.00 €
B26: Frais occasionnés par les voyages internationaux (indemnités journalières/d’hébergement, moyens de transport, visas, vaccins requis) | D26: unité | H26: 10000 | I26: 10,000.00 €
B27: Frais occasionnés par les voyages nationaux (indemnités journalières/d’hébergement, moyens de transport) | D27: unité | I27: 0.00 €
B28: Frais de transport de marchandises | D28: unité | I28: 0.00 €
B29: Frais de voyage des participant·e·s aux ateliers | D29: unité | I29: 0.00 €
D30: unité | I30: 0.00 €
A31: 4 | B31: Compensation des émissions de CO2 | I31: =SUM(I32:I37) -> 500.00 € | O31: Les émissions de CO2 générées par les voyages en avion peuvent - si l'évitement et la réduction ne sont pas possibles - être compensées. La condition préalable est que ces voyages en avion soient décomptés dans la ligne budgétaire « Frais de transport / de voyage ». La preuve des coûts de compensation du vol est constituée de justificatifs du fournisseur de compensations, qui doivent inclure les informations suivantes : itinéraire de vol (départ et destination), date, classe de réservation et quantité de CO2 calculée. Si ces informations ne sont pas mentionnées sur les justificatifs du fournisseur de compensations, le bénéficiaire doit compléter les détails de l’itinéraire du vol (départ, destination, date, classe de réservation) et la quantité de CO2 calculée.
B32: Vols internationaux | D32: Compensation | I32: 300.00 €
B33: Vols nationaux | D33: Compensation | H33: 200 | I33: =H33 -> 200.00 €
I34: 0.00 €
I35: 0.00 €
I36: 0.00 €
I37: 0.00 €
A38: 5 | B38: Achat de matériels et équipements | I38: =SUM(I39:I48) -> 4,000.00 € | O38: Los bienes que se adquieren y acreditan en una misma factura, deben indicarse en una línea presupuestaria. Les matériels informatiques, p. ex., peuvent figurer sur une ligne ; dans ce cas, il faut préciser entre parenthèses les différents biens donc l'achat est prévu. Pour les médicaments et les pesticides et les engrais minéraux, davantage de détails sont nécessaires pour l’obtention de la validation.
B39: Matériel informatique (ordinateur portable, imprimante, rétroprojecteur, accessoires) | D39: achat | I39: 4,000.00 €
B40: Équipement photographique (appareil photo et accessoires) | I40: 0
B41: Machine XY (indiquer précisément de quelle machine il s’agit, mais sans mentionner le modèle ni la marque !) | I41: 0
B42: Mobilier (bureaux, chaises, armoires) | I42: =H42 -> 0
B43: Indiquer précisément les véhicules et leur type : p. ex. voiture électriques, SUV blindé, scooter, etc. | I43: 0
B44: Téléphones portables | I44: 0
B45: Contributions en nature (de manière « in kind ») à des tiers destinataires (justificatif : documents de réapprovisionnement et procès-verbal de transfert) | I45: 0
I46: 0
I47: 0
I48: 0
A49: 6 | B49: Autres frais / Consommables | I49: =SUM(I50:I59) -> 100.00 € | O49: Veuillez noter que les coûts indirects relèvent de la catégorie des frais administratifs généraux. Seuls des coûts directs peuvent être portés sur les lignes du budget. Si des frais de location sont indiqués, seuls les coûts directs, autrement dit les loyers nets, peuvent être calculés. Les frais annexes (charges) sont à prendre en compte comme coûts indirects et à intégrer aux frais administratifs généraux. Contrairement aux biens matériels, que l’on utilise sur de longues périodes, les consommables sont des biens qui s’épuisent au fur et à mesure de l’usage, comme p. ex. le papier ou les recharges d’encre pour imprimante.
B50: Fournitures de bureau (papier pour imprimante, recharges d’encre, matériel d’écriture) | D50: unité | I50: 100.00 €
B51: Logiciels informatiques, licences | I51: 0
B52: Matériel d’emballage pour xxx | I52: =H52 -> 0
B53: Matériel de laboratoire | I53: 0
B54: Produits d’hygiène | I54: 0
B55: Outils | I55: 0
B56: Eau | I56: 0
B57: Dépliants / matériel publicitaire | I57: 0
B58: Frais de téléphone, cartes téléphoniques, etc. | I58: 0
I59: 0
A60: 7 | B60: Fonds pour l’appui direct à des bénéficiaires tiers (Remarque : Cette ligne budgétaire ne concerne que les contributions financières à des bénéficiaires tiers. Les contributions ne peuvent pas être utilisées pour l’achat de médicaments, de pesticides et/ou d’engrais minéraux. La procédure de sélection des bénéficiaires tiers doit être expliquée en détail dans la description du projet. Justificatifs : voir ligne sous-budgétaire) | I60: =SUM(I61:I64) -> 75,600.00 € | O60: Veuillez observer la remarque figurant dans la ligne du budget. Il faut s’entendre sur les justificatifs dans le budget et présenter les critères de sélection dans la description du projet. Important : il ne s’agit en l’occurrence que de destinataires à qui profite le projet du bénéficiaire dans le cadre, p. ex., d’une promotion de start-up, d’une promotion d’initiatives, de mesures « espèces contre travail », de concours de promotion, de bourses et autres. Il est nécessaire de s’entendre sur les justificatifs. Concernant les détails, il faut prendre conseil auprès de l'unité en charge de la gestion des contrats.
B61: Mesure de mise en oeuvre «Cash for Work» (Décompte sur la base d'une liste de présence des participants, accusé de réception par signature ou empreinte digitale ; la procédure de sélection est décrite en détail dans la description du projet.) | D61: 20 | E61: personne | H61: 30.00 | I61: =D61*H61 -> 600.00 €
B62: Financement de start-up (le décompte se fait sur preuve de l’utilisation effective par le tiers destinataire) ; Art. 5.2 du contrat s’applique. | D62: 5 | E62: start-ups | H62: 15000.00 | I62: =D62*H62 -> 75,000.00 €
I63: 0.00 €
I64: 0.00 €
A65: 8 | B65: Fair shared costs (selon le modèle de coûts partagés équitables du nom du bénéficiaire) | I65: =SUM(I66:I67) -> 0.00 € | O65: Cette ligne budgétaire est réservée aux organisations qui disposent d’une répartition ou d’une imputation des frais généraux dans leurs systèmes de comptabilité et peuvent en apporter la preuve en conséquence, à condition que ces frais ne soient pas imputés aux frais généraux administratifs. Le type de justificatif est fixé pour chaque cas particulier. Un exemple concret est un justificatif exprimé en pourcentage, sur la base des frais généraux et des relevés d’heures. Veuillez noter l’onglet « Exemple » et ajouter le **texte de note.
D66: unité | I66: 0
E67: unité | I67: =D67*H67 -> 0
B68: Sous-total - coûts directs | I68: =I49+I38+I12+I6+I23+I31+I60+I65 -> 195,700.00 €
A69: 9 | B69: Frais administratifs | I69: =I70 -> 9,785.00 € | O69: Les frais généraux administratifs sont normalement pris en charge par le bénéficiaire du financement en tant que contribution propre. Si une telle prise en charge n’est pas possible, la GIZ peut prendre en charge une petite partie des frais administratifs généraux. La nature et le montant des frais doivent , le cas échéant, être vérifiés au préalable par un*e expert*e-comptable. Si les frais généraux d'administration se rapportent à un plus petit nombre de lignes budgétaires, il est nécessaire d'en informer la gestion des contrats.
B70: Frais administratifs (pour les lignes budgétaires 1-8) | D70: 5.00% | H70: =I68 -> 195,700.00 | I70: =ROUND(D70*H70,) -> 9,785.00 €
B71: Sous-total - contribution financière de la GIZ (sur présentation de justificatifs - jusqu’à concurrence de - )* (coûts directs + frais administratifs généraux) | I71: =I68+I69 -> 205,485.00 €
A72: 10 | B72: Transfert de fonds à des destinataires tiers - un budget détaillé doit être soumis - | I72: =SUM(I73:I75) -> 10,000.00 € | O72: Il s’agit des destinataires tiers (co-implémenteurs). Ce sont des partenaires qui mettent en œuvre une partie du projet en toute autonomie. Il faut soumettre un budget séparé, et une évaluation des capacités commerciales et juridiques (portant seulement sur les critères personnalité juridique et statut d’utilité publique) doit être effectuée.
B73: OPQ | D73: transfert | I73: 10,000.00 €
B74: XYZ (nom du destinataire tiers) | I74: =D74*F74*H74 -> 0.00 €
B75: XYZ (nom du destinataire tiers) | I75: =D75*F75*H75 -> 0.00 € | K75: Parts en pourcentage
B76: Contribution financière de la GIZ (sur présentation de justificatifs - jusqu’à concurrence de) | I76: =I71+I72 -> 215,485.00 € | J76: =I76 -> 215,485.00 € | K76: =J76/$I$82 -> 93.49%
A77: 11 | B77: Contribution propre / Financement par des tiers | J77: =SUM(J78:J80) -> 15,000.00 € | O77: N’indiquez ici que la valeur globale de la contribution propre / du financement par des tiers. Une description succincte des cofinancements doit être intégrée à la description du projet.
B78: ABC (contribution propre) | D78: contribution | H78: 5,000.00 | J78: =H78 -> 5,000.00 € | K78: =J78/$I$82 -> 2.17%
B79: DEF (financement par de tiers) | D79: contribution | H79: 10,000.00 | J79: =H79 -> 10,000.00 € | K79: =J79/$I$82 -> 4.34%
D80: contribution | H80: 0.00 | J80: =H80 -> 0 | K80: =IFERROR(J80/$I$82,"") -> 0.00%
D81: contribution | H81: =_xlfn.IFS('Données de base'!$C$11="Auswählen", "",'Données de base'!$C$11>0,'Données de base'!G29, TRUE,"") -> 0.00 | J81: =H81 -> 0 | K81: =IFERROR(J81/$I$82,"") -> 0.00%
B82: Le budget total du projet à financer : | I82: =I76+J77 -> 230,485.00 € | K82: =SUM(K76:K81) -> 100.00%
B84: * Toutes les lignes budgétaires (à l’exception des frais administratifs généraux) doivent faire l’objet d’un décompte établi sur la base de justificatifs.
B85: ** Le règlement de la part de la GIZ des coûts partagés équitables se fait par preuve proportionnelle basée sur les coûts totaux et les feuilles de temps (part des heures de travail pour le projet de la GIZ et l'ensemble du personnel) ainsi que l'enregistrement des coûts réels pour les frais de bureau et d'équipement. Les frais de bureau et d'équipement doivent être ventilés par types de coûts (par exemple, loyer de bureau, frais de communication, eau et électricité, etc.) et additionnés pour obtenir un montant total. Les justificatifs soumis servent de preuve. Le calcul des ETP et les enregistrements des coûts de bureau et d'équipement sont vérifiés par l'auditeur mandaté par la GIZ.
B87: À noter : dans les cas où des marchés passés pour des services externes et/ou des biens matériels et/ou des fournitures doivent être financés par les fonds de la GIZ, les directives applicables à la passation de marchés spécifiées dans les clauses du contrat doivent être respectées !
B90: Les bénéfices du bénéficiaire ne sont pas financés.
B91: Des pièces justificatives propres pour l’utilisation des installations et des espaces du bénéficiaire (tiers) peut être présentée s’il est également confirmé que : a) il s’agit de la redistribution des prix de revient du bénéficiaire (tiers) au sein de sa propre organisation. La GIZ se réserve le droit d’effectuer des contrôles par sondage sur le prix de revient. b) l'utilisation d'installations comparables aux prix du marché ne représente pas une économie de coûts.
B92: En cas d’avenants : veuillez procéder aux ajustements budgétaires sur la base du dernier budget convenu au contrat et noter les modifications en couleur. La GIZ ne peut pas prendre en charge les coûts dûs aux fluctuations monétaires. | O92: Dans la demande de modification du contrat, il convient d’expliciter les redéploiements budgétaires. L’augmentation des coûts de personnel en particulier doit être assortie d’une justification.
